Service Area Categorisation,Service Division Categorisation,Responsible Unit,Expenses Type,Detailed Expenses Type,Expense Code,Date,Transaction Number,Amount,Supplier Name
National Parks,Promoting Understanding,Bowness Bay IC,Supplies & Services,Books for Resale,7015,03/01/2017,821285,-572.74,Hills Books Ltd
National Parks,Promoting Understanding,Brockhole,Premises,Water,5010,03/01/2017,821279,"3,376.39",United Utilities Water Ltd (BACS only)
National Parks,Promoting Understanding,Brockhole,Premises,Electricity,5100,03/01/2017,821183,851.18,Npower
National Parks,Promoting Understanding,Brockhole,Premises,Electricity,5100,03/01/2017,821179,867.61,Npower
National Parks,Promoting Understanding,Brockhole,Premises,Electricity,5100,03/01/2017,821181,946.61,Npower
National Parks,Promoting Understanding,Brockhole,Premises,Electricity,5100,03/01/2017,821193,"1,389.16",Npower
National Parks,Promoting Understanding,Brockhole,Supplies & Services,Marketing,6310,03/01/2017,821246,"1,500.00",The Plain Creative Agency
National Parks,Promoting Understanding,Catering,Premises,Water,5010,03/01/2017,821279,595.83,United Utilities Water Ltd (BACS only)
National Parks,Promoting Understanding,Catering,Premises,Electricity,5100,03/01/2017,821193,245.14,Npower
National Parks,Cost to be Re-allocated,Human Resources,Employee Costs,Training,4200,03/01/2017,821159,"1,050.00",Nationwide Fire Training Ltd
National Parks,Cost to be Re-allocated,Human Resources,Supplies & Services,Equipment - Contract Mtce,5525,03/01/2017,821265,"1,281.71",Advanced Business Solutions
National Parks,Cost to be Re-allocated,Murley Moss,Premises,Electricity,5100,03/01/2017,821185,867.24,Npower
National Parks,Cost to be Re-allocated,Property Manager,Supplies & Services,Other Professional Fees,8215,03/01/2017,821261,"2,721.98",Colliers International
National Parks,Recreation Management & Transport,Rec Manage Properties,Supplies & Services,Miscellaneous Expenses,6999,03/01/2017,821195,-509.18,Npower
National Parks,Recreation Management & Transport,Rec Manage Properties,Supplies & Services,Miscellaneous Expenses,6999,03/01/2017,820515,509.18,Npower
National Parks,,Balance Sheet Cost Centre,,Procurement Card Control,2400,04/01/2017,821399,"22,365.49",Natwest
National Parks,Cost to be Re-allocated,Central & South PM,Premises,Electricity,5100,04/01/2017,821178,893.71,Npower
National Parks,Windermere Registration Scheme,Registration Scheme,Supplies & Services,Printing,6015,04/01/2017,821108,"1,135.00",Stramongate Press Ltd
National Parks,Promoting Understanding,Bowness Bay IC,Premises,Electricity,5100,05/01/2017,821187,"1,126.44",Npower
National Parks,Promoting Understanding,Brockhole,Premises,Gas,5105,05/01/2017,821292,-723.33,British Gas Business
National Parks,Promoting Understanding,Brockhole,Premises,Gas,5105,05/01/2017,821289,417.36,British Gas Business
National Parks,Promoting Understanding,Brockhole,Premises,Gas,5105,05/01/2017,821291,723.33,British Gas Business
National Parks,Promoting Understanding,Catering,Premises,Gas,5105,05/01/2017,821292,-127.64,British Gas Business
National Parks,Promoting Understanding,Catering,Premises,Gas,5105,05/01/2017,821289,73.65,British Gas Business
National Parks,Promoting Understanding,Catering,Premises,Gas,5105,05/01/2017,821291,127.64,British Gas Business
National Parks,Promoting Understanding,Keswick IC,Supplies & Services,Books for Resale,7015,05/01/2017,821398,"-1,059.46",Hills Books Ltd
National Parks,Promoting Understanding,Gardeners,Premises,Grounds Maintenance,5245,06/01/2017,821322,481.25,South Lakeland District Council
National Parks,Cost to be Re-allocated,Property Manager,Supplies & Services,Other Professional Fees,8215,06/01/2017,821411,650.00,Hyde Harrington
National Parks,Recreation Management & Transport,Rusland Horizons,Supplies & Services,Miscellaneous Expenses,6999,06/01/2017,821240,34.65,Lancaster University
National Parks,Recreation Management & Transport,Rusland Horizons,Supplies & Services,Other Professional Fees,8215,06/01/2017,821240,"1,875.00",Lancaster University
National Parks,Recreation Management & Transport,Rusland Horizons,Supplies & Services,Other Professional Fees,8215,06/01/2017,821406,"6,950.00",Oxford Archaeology North
National Parks,Recreation Management & Transport,Toilets,Premises,Water,5010,06/01/2017,821329,705.79,United Utilities Water Ltd. DIRECT DEBIT
National Parks,Recreation Management & Transport,Toilets,Premises,Contract Cleaning,5200,06/01/2017,821324,480.00,Lakesloos
National Parks,Recreation Management & Transport,Toilets,Premises,Contract Cleaning,5200,06/01/2017,821410,"1,212.33", Barbara Todhunter Cleaning
National Parks,,Balance Sheet Cost Centre,,Lowther Car Parks,2115,09/01/2017,821469,505.20,Dalemain Estates
National Parks,,Balance Sheet Cost Centre,,Grasmere School,2124,09/01/2017,821463,"1,098.90",Grasmere C of E Primary School
National Parks,Promoting Understanding,Catering,Supplies & Services,Food for Resale,7000,09/01/2017,821458,510.60,Riverbank Hospitality Catering
National Parks,Cost to be Re-allocated,Communications & Customer Engagement,Supplies & Services,Online hosting,5523,09/01/2017,821287,-700.00,Fat Media
National Parks,Cost to be Re-allocated,Communications & Customer Engagement,Supplies & Services,Online hosting,5523,09/01/2017,821286,"3,300.00",Fat Media
National Parks,Forward Planning & Communities,Community - Fund,Third Party Payments,Grant Contribution,8350,09/01/2017,821474,"2,000.00",The Ruskin Museum
National Parks,Promoting Understanding,Gardeners,Employee Costs,Contract Staff,4092,09/01/2017,821437,870.00,Helping Hands Gardening Service
National Parks,Promoting Understanding,Gardeners,Employee Costs,Contract Staff,4092,09/01/2017,821451,"1,080.00",Mr J Camp
National Parks,Cost to be Re-allocated,Head of Commercial Services,Supplies & Services,Miscellaneous Expenses,6999,09/01/2017,821393,"4,475.00",The Harrison Network
National Parks,Cost to be Re-allocated,North & East PM,Premises,Other Fuel,5110,09/01/2017,821431,567.00,Barden Biomass Ltd
National Parks,Cost to be Re-allocated,PMF Projects,Premises,Prpty Mtce Fd Unallocated,5252,09/01/2017,821417,420.00,B & J Metals
National Parks,Promoting Understanding,PMF Projects,Premises,Prpty Mtce Fd Unallocated,5252,09/01/2017,821438,450.00,Simpson Services
National Parks,Promoting Understanding,PMF Projects,Premises,Prpty Mtce Fd Unallocated,5252,09/01/2017,821449,"1,950.00",Jetties & Moorings
National Parks,"Rangers, Estates & Volunteers",Routes to Resilience,Supplies & Services,Equipment - Purchase,5520,09/01/2017,821489,"2,313.34",Screwfix Direct Ltd
National Parks,Recreation Management & Transport,Toilets,Premises,Contract Cleaning,5200,09/01/2017,821442,"2,069.10",Stephen E Airey t/a Bob Airey
National Parks,Recreation Management & Transport,Toilets,Premises,Other Clean (Incl Refuse),5205,09/01/2017,821442,172.66,Stephen E Airey t/a Bob Airey
National Parks,Cost to be Re-allocated,Vehicles,Transport,Petrol/Fuel,5400,09/01/2017,821390,832.20,Allstar Business Solutions Ltd DD
National Parks,Conservation of the Cultural Heritage,Heritage Conservation - Projects,Supplies & Services,Other Professional Fees,8215,10/01/2017,820812,"1,356.82",Minerva Heritage Limited
National Parks,Conservation of the Cultural Heritage,Heritage Conservation - Projects,Supplies & Services,Other Professional Fees,8215,10/01/2017,821296,"1,356.82",Minerva Heritage Limited
National Parks,Conservation of the Cultural Heritage,Heritage Conservation - Projects,Supplies & Services,Other Professional Fees,8215,10/01/2017,820692,"16,059.50",Northern Archaeological Association Ltd
National Parks,Conservation of the Cultural Heritage,Heritage Conservation - Projects,Supplies & Services,Evaluation,8240,10/01/2017,821101,"2,500.00",Wingspan Consulting Ltd
National Parks,Promoting Understanding,Information Services Project Management,Supplies & Services,Consultants,8205,10/01/2017,821513,"1,470.00",Lakes China Weibo
National Parks,Cost to be Re-allocated,Legal,Supplies & Services,Publications/Mags & Books,6040,10/01/2017,821492,"1,960.32",Thomson Reuters
National Parks,Forward Planning & Communities,Partnership Priorities,Supplies & Services,Consultants,8205,10/01/2017,820951,"2,600.00",Metropolitan Transport Research Organisation Ltd
National Parks,"Rangers, Estates & Volunteers",Routes to Resilience,Premises,Basic RoW Maintenance,5240,10/01/2017,821427,"3,720.00",J & H M Dickson Ltd
National Parks,"Rangers, Estates & Volunteers",Routes to Resilience,Supplies & Services,Other Professional Fees,8215,10/01/2017,821257,"1,140.00",Mountain Sense Ltd
National Parks,Forward Planning & Communities,Spatial Planning & Community Projects,Supplies & Services,Miscellaneous Expenses,6999,10/01/2017,820987,854.90,Cumbria County Council
National Parks,Forward Planning & Communities,Spatial Planning & Community Projects,Supplies & Services,Consultants,8205,10/01/2017,821493,660.00,Alistair Kirkbride
National Parks,Forward Planning & Communities,Spatial Planning & Community Projects,Supplies & Services,Consultants,8205,10/01/2017,821394,760.10,Richard Ingham Cycle Planning Consultancy
National Parks,Forward Planning & Communities,Spatial Planning & Community Projects,Supplies & Services,Consultants,8205,10/01/2017,820883,"1,450.00",Chris Greenwood Landscape Architect
National Parks,Forward Planning & Communities,Spatial Planning & Community Projects,Supplies & Services,Consultants,8205,10/01/2017,821089,"3,750.00",National Park Research Centre
National Parks,Cost to be Re-allocated,West & South PM,Premises,Electricity,5100,10/01/2017,821238,867.60,E-on
National Parks,Cost to be Re-allocated,West & South PM,Supplies & Services,Miscellaneous Expenses,6999,10/01/2017,821293,520.00,Kencomp Internet Ltd
National Parks,Recreation Management & Transport,HPM Projects,Supplies & Services,Consultants,8205,11/01/2017,821161,"24,468.50",Capita Property Services
National Parks,"Rangers, Estates & Volunteers",LDNPA RoW Flood Works Phase 1,Premises,Basic RoW Maintenance,5240,11/01/2017,821514,"1,950.00",Hough Tullett Limited
National Parks,,PM Capital - N & E,,Plant Machinery & Equipment,CE04,11/01/2017,821503,491.53,High Hill Garage
National Parks,Recreation Management & Transport,RoW Access Improvements,Premises,Basic RoW Maintenance,5240,11/01/2017,821491,"1,670.00",R & J Slater
National Parks,Recreation Management & Transport,Rusland Horizons,Employee Costs,Training,4200,11/01/2017,821546,-725.00,Cumbria County Council
National Parks,Recreation Management & Transport,Rusland Horizons,Supplies & Services,Other Professional Fees,8215,11/01/2017,821457,430.00,Rob Bell Fencing Ltd
National Parks,Recreation Management & Transport,Rusland Horizons,Supplies & Services,Other Professional Fees,8215,11/01/2017,821482,"1,000.00",Tim fleming
National Parks,Recreation Management & Transport,Rusland Horizons,Supplies & Services,Other Professional Fees,8215,11/01/2017,821524,"1,500.00",The Creative Branch
National Parks,Recreation Management & Transport,Rusland Horizons,Supplies & Services,Other Professional Fees,8215,11/01/2017,821523,"3,000.00",The Creative Branch
National Parks,Cost to be Re-allocated,Vehicles,Transport,Petrol/Fuel,5400,11/01/2017,821541,"1,154.89",Allstar Business Solutions Ltd DD
National Parks,Cost to be Re-allocated,Vehicles,Transport,Maint/Service/Repairs/MOT,5410,11/01/2017,821462,659.34,ATS Euromaster Ltd
National Parks,Forward Planning & Communities,Community - Fund,Third Party Payments,Grant Contribution,8350,12/01/2017,821570,"1,000.00",Bampton Parish Council
National Parks,,Facilities - Capital,,New Construction Conversion Renovation,CE02,12/01/2017,821526,"1,180.00",Baker Mallett LLP
National Parks,,Facilities - Capital,,New Construction Conversion Renovation,CE02,12/01/2017,821525,"38,691.26",Ashcroft Construction Cumbria Ltd
National Parks,Cost to be Re-allocated,Info & Comm Technology,Supplies & Services,Equipment - Contract Mtce,5525,12/01/2017,821294,"17,044.45",Sapphire Systems Plc
National Parks,Cost to be Re-allocated,Murley Moss,Premises,Other Fuel,5110,12/01/2017,821527,"1,262.50",Barden Biomass Ltd
National Parks,Cost to be Re-allocated,Murley Moss,Premises,Contract Cleaning,5200,12/01/2017,821485,"1,130.50",Bullough Contract Services Ltd
National Parks,Promoting Understanding,Brockhole,Premises,Contract Cleaning,5200,13/01/2017,821535,"1,105.00",Karen Demaine TA Helpful Hands
National Parks,Promoting Understanding,Commercial Activities,Supplies & Services,Shows & Events,6306,13/01/2017,821522,825.00,Astral Circus
National Parks,Cost to be Re-allocated,Communications & Customer Engagement,Supplies & Services,Online hosting,5523,13/01/2017,821558,"2,200.00",Uniform Communications Ltd
National Parks,Cost to be Re-allocated,Communications & Customer Engagement,Supplies & Services,Customer Engagement,6308,13/01/2017,821559,"5,997.30",Uniform Communications Ltd
National Parks,Recreation Management & Transport,Coniston Boating Centre,Supplies & Services,Equipment - Fuel,5540,13/01/2017,821515,66.67,Allstar Business Solutions Ltd DD
National Parks,Recreation Management & Transport,Coniston Boating Centre,Supplies & Services,Marketing,6310,13/01/2017,821568,750.00,AHA! Distribution Ltd
National Parks,Cost to be Re-allocated,Info & Comm Technology,Supplies & Services,Phones,6005,13/01/2017,821481,896.91,Daisy Communications
National Parks,Cost to be Re-allocated,Info & Comm Technology,Supplies & Services,Mobile Phones,6006,13/01/2017,821506,"1,218.44",Vodafone Corporate Ltd
National Parks,Cost to be Re-allocated,Vehicles,Transport,Petrol/Fuel,5400,13/01/2017,821515,573.82,Allstar Business Solutions Ltd DD
National Parks,Promoting Understanding,Brockhole,Supplies & Services,Marketing,6310,14/01/2017,821569,"3,970.00",AHA! Distribution Ltd
National Parks,,Balance Sheet Cost Centre,,Procurement Card Control,2400,16/01/2017,821587,"16,672.45",Natwest
National Parks,Cost to be Re-allocated,Development Management Support,Supplies & Services,Consultants,8205,16/01/2017,821590,"4,706.40",Coates Aassociates
National Parks,Cost to be Re-allocated,Finance Team,Supplies & Services,Publications/Mags & Books,6040,16/01/2017,821454,915.00,CIPFA Business Ltd
National Parks,Cost to be Re-allocated,Finance Team,Supplies & Services,Other Professional Fees,8215,16/01/2017,821327,"1,000.00",Grant Thornton UK LLP
National Parks,Cost to be Re-allocated,Finance Team,Supplies & Services,Other Professional Fees,8215,16/01/2017,821556,"1,857.62",Bury Council Pay Services
National Parks,Cost to be Re-allocated,Finance Team,Supplies & Services,Other Professional Fees,8215,16/01/2017,821555,"2,599.34",RK Group Ltd
National Parks,Recreation Management & Transport,Fix the Fells,Premises,Grounds Maintenance,5245,16/01/2017,821585,"2,296.58",Paramo Ltd
National Parks,Promoting Understanding,Commercial Activities,Transport,Other Travel Expenses,5455,17/01/2017,821545,312.30,Diners Club International DD
National Parks,Cost to be Re-allocated,Corporate - Projects,Supplies & Services,Consultants,8205,17/01/2017,821566,"5,221.65",Di Robson Events & Arts Management
National Parks,Corporate & Democratic Core,Corporate Costs,Transport,Other Travel Expenses,5455,17/01/2017,821545,186.65,Diners Club International DD
National Parks,Conservation of the Natural Environment,Environment - Rural Properties,Premises,Prpty Mtce Fd Unallocated,5252,17/01/2017,821023,900.00,Gary Hayes
National Parks,Recreation Management & Transport,RoW Access,Premises,Signs New,5280,17/01/2017,821461,"1,357.00",Brampton Wood Works
National Parks,Forward Planning & Communities,Spatial Planning & Community Projects,Transport,Other Travel Expenses,5455,17/01/2017,821545,209.65,Diners Club International DD
National Parks,Forward Planning & Communities,Strategic Investment Programme,Employee Costs,Training,4200,17/01/2017,821395,500.00,Climate Support CIC
National Parks,Recreation Management & Transport,RoW Access Improvements,Premises,Basic RoW Maintenance,5240,18/01/2017,821560,550.00,Steve Hicks Blacksmiths
National Parks,Recreation Management & Transport,RoW Access Improvements,Premises,Basic RoW Maintenance,5240,18/01/2017,821617,"3,150.00",Alistair Irvine Contracting
National Parks,Recreation Management & Transport,RoW Access Improvements,Premises,Basic RoW Maintenance,5240,18/01/2017,821687,"3,862.90",L & W Wilson Endmoor Ltd
National Parks,Recreation Management & Transport,Toilets,Premises,Contract Cleaning,5200,18/01/2017,821577,"1,340.00",The Longsleddale Community Hall
National Parks,Promoting Understanding,Brockhole,Supplies & Services,Marketing,6310,19/01/2017,821580,"1,000.00",World of Beatrix Potter Attraction
National Parks,Development Control,Planning Projects,Supplies & Services,Consultants,8205,19/01/2017,821613,"5,980.00",Bowfell Consulting Limited
National Parks,Recreation Management & Transport,Coniston Boating Centre,Premises,Rent,5000,20/01/2017,821601,"2,850.00",Rawdon-Smith Trust
National Parks,Recreation Management & Transport,Coniston Boating Centre,Supplies & Services,Marketing,6310,20/01/2017,821700,"1,997.00",H&H Reeds Printers
National Parks,,HR balance sheet CC,,Busy Bees,2506,20/01/2017,821695,"2,673.76",Computershare Voucher Services DD
National Parks,Cost to be Re-allocated,Human Resources,Employee Costs,Training,4200,20/01/2017,821607,550.00,Lakes Training Solutions
National Parks,Recreation Management & Transport,Property Operations,Premises,Rent,5000,20/01/2017,821597,"3,000.00",Michael CL Hodgson
National Parks,Recreation Management & Transport,Property Operations,Premises,Rent,5000,20/01/2017,821605,"5,010.33",RHF Fleming T/A Rydal Estate Cur
National Parks,Recreation Management & Transport,Property Operations,Premises,Rent,5000,20/01/2017,821606,"5,850.25",RHF Fleming T/A Rydal Estate Cur
National Parks,Cost to be Re-allocated,Vehicles,Transport,Maint/Service/Repairs/MOT,5410,20/01/2017,821550,498.16,High Hill Garage
National Parks,Promoting Understanding,Brockhole,Supplies & Services,Marketing,6310,23/01/2017,821725,507.02,Mediahawk Ltd
National Parks,Forward Planning & Communities,Community - Fund,Third Party Payments,Grant Contribution,8350,23/01/2017,821732,"3,000.00",Bassenthwaite School
National Parks,Recreation Management & Transport,Coniston Boating Centre,Premises,Other Clean (Incl Refuse),5205,23/01/2017,821711,517.44,Cumbria Waste Management Ltd
National Parks,Promoting Understanding,Brockhole Development,Supplies & Services,Consultants,8205,24/01/2017,821610,"2,625.00",Geotechnical Engineering Ltd
National Parks,"Rangers, Estates & Volunteers",LDNPA RoW Flood Works Phase 1,Premises,Basic RoW Maintenance,5240,24/01/2017,821696,"13,468.00",O'Malley Plant Hire Ltd
National Parks,Cost to be Re-allocated,Vehicles,Transport,Petrol/Fuel,5400,24/01/2017,821699,532.79,Allstar Business Solutions Ltd DD
National Parks,Promoting Understanding,Brockhole,Premises,Electricity,5100,25/01/2017,821739,"1,434.66",Npower
National Parks,Promoting Understanding,Brockhole,Supplies & Services,Marketing,6310,25/01/2017,821751,"3,960.00",H&H Reeds Printers
National Parks,Promoting Understanding,Catering,Premises,Electricity,5100,25/01/2017,821739,253.05,Npower
National Parks,Promoting Understanding,Catering,Supplies & Services,Food for Resale,7000,25/01/2017,821771,"1,151.00",Riverbank Hospitality Catering
National Parks,Promoting Understanding,PMF Projects,Premises,Prpty Mtce Fd Unallocated,5252,25/01/2017,821761,450.00,Simpson Services
National Parks,Promoting Understanding,PMF Projects,Premises,Prpty Mtce Fd Unallocated,5252,25/01/2017,821767,450.00,Simpson Services
National Parks,Recreation Management & Transport,Fix the Fells,Premises,Grounds Maintenance,5245,26/01/2017,821595,541.55,The Outdoors Company
National Parks,Cost to be Re-allocated,Info & Comm Technology,Supplies & Services,Equipment - Contract Mtce,5525,26/01/2017,821775,"2,449.94",BMC Software Distribution B.V. (Numara Division)
National Parks,Cost to be Re-allocated,Info & Comm Technology,Supplies & Services,Printing,6015,26/01/2017,821735,651.34,Konica Minolta Business Solutions UK Ltd
National Parks,Cost to be Re-allocated,Info & Comm Technology,Supplies & Services,Other Professional Fees,8215,26/01/2017,821760,"3,000.00",In Form Consult Ltd
National Parks,,IT Capital,,Computer Hardware,CE08,26/01/2017,821600,"9,144.00",Getmapping Plc
National Parks,Recreation Management & Transport,Toilets,Premises,Water,5010,26/01/2017,821753,547.84,United Utilities Water Ltd. DIRECT DEBIT
National Parks,Recreation Management & Transport,Toilets,Premises,Contract Cleaning,5200,26/01/2017,821803,480.00,Lakesloos
National Parks,Recreation Management & Transport,Rusland Horizons,Supplies & Services,Other Professional Fees,8215,27/01/2017,821758,750.00,Edward Mills
National Parks,Forward Planning & Communities,Community - Fund,Third Party Payments,Grant Contribution,8350,30/01/2017,821825,530.82,Lorton After School Club
National Parks,Employers Pension Contributions,Employers Pension Contributions,Below the Line adjustments,STMGFB Pension Contributions,8470,30/01/2017,821602,"16,022.85",Cumbria LGPS
National Parks,Cost to be Re-allocated,Finance Team,Supplies & Services,Insurance Premiums,6930,30/01/2017,821800,"12,376.22",NFU Mutual DD
National Parks,Promoting Understanding,Gardeners,Employee Costs,Contract Staff,4092,30/01/2017,821786,600.00,Radiata Specialist Tree Services
National Parks,,Property Manager Capital,,New Construction Conversion Renovation,CE02,30/01/2017,821847,"2,486.83",Lewis Surveying Associates Ltd
National Parks,,Property Manager Capital,,New Construction Conversion Renovation,CE02,30/01/2017,821846,"2,544.43",Lewis Surveying Associates Ltd
National Parks,Cost to be Re-allocated,Human Resources,Employee Costs,Training,4200,31/01/2017,821773,515.00,Rays School of Motoring
National Parks,Promoting Understanding,Keswick IC,Supplies & Services,Books for Resale,7015,31/01/2017,821840,-593.48,Hills Books Ltd
National Parks,Recreation Management & Transport,Toilets,Premises,Contract Cleaning,5200,31/01/2017,821863,"2,069.10",Stephen E Airey t/a Bob Airey
National Parks,Recreation Management & Transport,Toilets,Premises,Other Clean (Incl Refuse),5205,31/01/2017,821863,172.66,Stephen E Airey t/a Bob Airey
National Parks,Promoting Understanding,Brockhole Development,Supplies & Services,Consultants,8205,01/02/2017,821856,"4,375.00",Blue Sail Consulting Ltd
National Parks,Promoting Understanding,Gardeners,Employee Costs,Contract Staff,4092,01/02/2017,821948,592.50,Helping Hands Gardening Service
National Parks,Recreation Management & Transport,RoW Access Improvements,Premises,Basic RoW Maintenance,5240,01/02/2017,821849,"1,015.50",Cheviot Trees
National Parks,Recreation Management & Transport,RoW Access Improvements,Premises,Basic RoW Maintenance,5240,01/02/2017,821762,"4,380.00",Commercial Ground Works Ltd
National Parks,Recreation Management & Transport,RoW Access Maintenance,Premises,Basic RoW Maintenance,5240,01/02/2017,821768,78.00,Mr David Benson
National Parks,,Threlkeld Depot - balance sheet CC,,Threlkeld Depot stock,1911,01/02/2017,821768,"1,941.00",Mr David Benson
National Parks,Promoting Understanding,Brockhole Development,Supplies & Services,Consultants,8205,02/02/2017,821855,"4,550.00",Stephen Feber Ltd
National Parks,Cost to be Re-allocated,Communications & Customer Engagement,Supplies & Services,Online hosting,5523,02/02/2017,821785,"1,262.25",Uniform Communications Ltd
National Parks,Cost to be Re-allocated,Communications & Customer Engagement,Supplies & Services,Media,6309,02/02/2017,821827,665.00,NLA media access limited
National Parks,Cost to be Re-allocated,Communications & Customer Engagement,Supplies & Services,Professional Fees - Education,8217,02/02/2017,821769,"9,317.50",John Muir Trust
National Parks,Cost to be Re-allocated,Information Centre Support,Supplies & Services,Marketing,6310,02/02/2017,821853,"1,500.00",Fuze Research Ltd
National Parks,Cost to be Re-allocated,Investing in our Future Projects,Supplies & Services,Other Professional Fees,8215,02/02/2017,821611,"2,651.50",Outdoor Edge Ltd
National Parks,Cost to be Re-allocated,Property Manager,Supplies & Services,Miscellaneous Expenses,6999,02/02/2017,821933,435.75,A Plant
National Parks,Recreation Management & Transport,Rusland Horizons,Employee Costs,Training,4200,02/02/2017,821871,615.00,Solway Driver Training
National Parks,Recreation Management & Transport,Rusland Horizons,Supplies & Services,Other Professional Fees,8215,02/02/2017,821939,"2,000.00",The Creative Branch
National Parks,Promoting Understanding,Brockhole,Premises,Other Fuel,5110,03/02/2017,821943,149.34,Scottish Fuels
National Parks,Promoting Understanding,Gardeners,Premises,Other Fuel,5110,03/02/2017,821943,384.00,Scottish Fuels
National Parks,Cost to be Re-allocated,Human Resources,Employee Costs,Promotion & Development,4223,03/02/2017,821963,"1,602.00",Ice Creates Ltd
National Parks,Cost to be Re-allocated,Info & Comm Technology,Supplies & Services,Equipment - Purchase,5520,03/02/2017,821708,"1,017.11",Netcentrix Ltd
National Parks,Recreation Management & Transport,RoW Access,Premises,Signs New,5280,03/02/2017,821851,"1,182.60",Brampton Wood Works
National Parks,Recreation Management & Transport,Toilets,Premises,Contract Cleaning,5200,03/02/2017,821961,"1,212.33", Barbara Todhunter Cleaning
National Parks,Forward Planning & Communities,Community - Fund,Third Party Payments,Grant Contribution,8350,06/02/2017,821999,750.00,Lowther and Askham History & Archaeology Society
National Parks,Forward Planning & Communities,Community - Fund,Third Party Payments,Grant Contribution,8350,06/02/2017,822000,"1,000.00",Eskdale Mill & Heritage Trust
National Parks,Conservation of the Cultural Heritage,Heritage Conservation - Projects,Supplies & Services,Consultants,8205,06/02/2017,821618,"8,463.00",Oxford Archaeology North
National Parks,Cost to be Re-allocated,Lake Patrol Team,Supplies & Services,Boat Maintenance,5505,06/02/2017,821998,600.00,YHA Windermere
National Parks,Cost to be Re-allocated,North & East PM,Premises,Other Fuel,5110,06/02/2017,821868,553.50,Barden Biomass Ltd
National Parks,Forward Planning & Communities,Partnership Priorities,Supplies & Services,Miscellaneous Expenses,6999,06/02/2017,821935,"1,518.75",Clearer Thinking Ltd
National Parks,Forward Planning & Communities,Partnership Priorities,Supplies & Services,Consultants,8205,06/02/2017,821869,"2,500.00",Federation of Cumbria Commoners
National Parks,"Rangers, Estates & Volunteers",Routes to Resilience,Premises,Basic RoW Maintenance,5240,06/02/2017,821968,455.00,Burlington Slate Ltd
National Parks,"Rangers, Estates & Volunteers",Routes to Resilience,Supplies & Services,Equipment - Purchase,5520,06/02/2017,821591,"2,347.99",Hilti (Gt Britain) Ltd
National Parks,"Rangers, Estates & Volunteers",Routes to Resilience,Supplies & Services,Equipment - Purchase,5520,06/02/2017,821988,"9,280.00",Alan Tuer
National Parks,"Rangers, Estates & Volunteers",Routes to Resilience,Supplies & Services,Uniforms/Protective Cloth,5570,06/02/2017,821852,"1,526.80",Taylor Made Designs UK Ltd
National Parks,"Rangers, Estates & Volunteers",Routes to Resilience,Supplies & Services,PPE,5571,06/02/2017,821766,535.84,Luscombe Plant Hire Ltd
National Parks,"Rangers, Estates & Volunteers",Routes to Resilience,Supplies & Services,Miscellaneous Expenses,6999,06/02/2017,821845,495.00,Rays School of Motoring
National Parks,Recreation Management & Transport,Rusland Horizons,Employee Costs,Training,4200,06/02/2017,821996,413.02,Bill Hogarth MBE Memorial Apprenticeship Trust
National Parks,Recreation Management & Transport,Rusland Horizons,Transport,Other Travel Expenses,5455,06/02/2017,821997,38.20,Cumbria Wildlife Trust
National Parks,Recreation Management & Transport,Rusland Horizons,Supplies & Services,Other Professional Fees,8215,06/02/2017,821997,"1,535.64",Cumbria Wildlife Trust
National Parks,Forward Planning & Communities,Spatial Planning & Community Projects,Supplies & Services,Consultants,8205,06/02/2017,821954,600.00,Chris Greenwood Landscape Architect
National Parks,Forward Planning & Communities,Spatial Planning & Community Projects,Supplies & Services,Consultants,8205,06/02/2017,821614,750.00,Julian Jackson Professional Services
National Parks,Forward Planning & Communities,Spatial Planning & Community Projects,Supplies & Services,Consultants,8205,06/02/2017,821955,820.00,Chris Greenwood Landscape Architect
National Parks,,Threlkeld Depot - balance sheet CC,,Threlkeld Depot stock,1911,06/02/2017,821958,792.00,Birkdale
National Parks,,Threlkeld Depot - balance sheet CC,,Threlkeld Depot stock,1911,06/02/2017,821957,"1,442.00",Birkdale
National Parks,Recreation Management & Transport,Toilets,Supplies & Services,Equipment - Purchase,5520,06/02/2017,821987,590.00,Auto Mate Systems Ltd
National Parks,,Car Parks - Capital,,Plant Machinery & Equipment,CE04,07/02/2017,822022,"1,580.00",Ormrod Signs
National Parks,Cost to be Re-allocated,Director of Sustainable Development,Supplies & Services,Consultants,8205,07/02/2017,821959,945.15,Matthews and Son LLP
National Parks,Cost to be Re-allocated,Murley Moss,Premises,Electricity,5100,07/02/2017,821862,986.18,Npower
National Parks,Cost to be Re-allocated,Murley Moss,Premises,Contract Cleaning,5200,07/02/2017,821953,"1,130.50",Bullough Contract Services Ltd
National Parks,Cost to be Re-allocated,PMF Projects,Premises,Prpty Mtce Fd Unallocated,5252,07/02/2017,821750,801.76,Zip Heaters (UK) Limited
National Parks,Promoting Understanding,2015 Floods - Property,Premises,Prpty Mtce Fd Unallocated,5252,08/02/2017,822028,437.62,Bainbridge Electrical Ltd
National Parks,Promoting Understanding,Brockhole Development,Supplies & Services,Consultants,8205,08/02/2017,822048,"3,862.50",Montfort Consultants Ltd
National Parks,Promoting Understanding,Gardeners,Employee Costs,Contract Staff,4092,08/02/2017,822002,960.00,Mr J Camp
National Parks,Conservation of the Cultural Heritage,Heritage Conservation - Projects,Supplies & Services,Consultants,8205,08/02/2017,821621,600.00,Minerva Heritage Limited
National Parks,Conservation of the Cultural Heritage,Heritage Conservation - Projects,Supplies & Services,Other Professional Fees,8215,08/02/2017,821945,"1,356.82",Minerva Heritage Limited
National Parks,Cost to be Re-allocated,Property Manager,Supplies & Services,Other Professional Fees,8215,08/02/2017,821969,"1,250.00",A L Daines & Partners
National Parks,Forward Planning & Communities,Spatial Planning & Community Projects,Supplies & Services,Consultants,8205,08/02/2017,821532,"1,800.00",Chris Greenwood Landscape Architect
National Parks,Cost to be Re-allocated,Info & Comm Technology,Supplies & Services,Equipment - Contract Mtce,5525,09/02/2017,822003,"7,524.62",Agile Applications Ltd / Swift Data Pro Ltd
National Parks,Cost to be Re-allocated,Info & Comm Technology,Supplies & Services,Phones,6005,09/02/2017,822077,505.00,Vodafone Ltd DIRECT DEBIT
National Parks,Cost to be Re-allocated,Info & Comm Technology,Supplies & Services,Phones,6005,09/02/2017,822045,937.83,Daisy Communications
National Parks,Cost to be Re-allocated,Info & Comm Technology,Supplies & Services,Printing,6015,09/02/2017,822079,838.13,Konica Minolta Business Solutions UK Ltd
National Parks,Cost to be Re-allocated,Legal,Supplies & Services,Publications/Mags & Books,6040,09/02/2017,822033,"6,151.68",Thomson Reuters
National Parks,Recreation Management & Transport,Rusland Horizons,Supplies & Services,Equipment - Purchase,5520,09/02/2017,822021,"1,200.00",Lakeland Landrover
National Parks,Recreation Management & Transport,Rusland Horizons,Supplies & Services,Equipment - Purchase,5520,09/02/2017,822037,"1,329.00",GE & PE Dawson
National Parks,Recreation Management & Transport,Rusland Horizons,Supplies & Services,Conservation Work,8218,09/02/2017,822062,690.00,Ben Thompson Ltd
National Parks,Promoting Understanding,Brockhole,Premises,Gas,5105,10/02/2017,822096,"1,001.48",British Gas Business
National Parks,Promoting Understanding,Catering,Premises,Gas,5105,10/02/2017,822096,176.73,British Gas Business
National Parks,Cost to be Re-allocated,Communications & Customer Engagement,Supplies & Services,Information & Learning,6311,10/02/2017,821985,750.00,AHA! Distribution Ltd
National Parks,,Balance Sheet Cost Centre,,Lowther Car Parks,2115,13/02/2017,822119,704.00,Dalemain Estates
National Parks,,Balance Sheet Cost Centre,,Grasmere School,2124,13/02/2017,822117,652.72,Grasmere C of E Primary School
National Parks,Cost to be Re-allocated,Info & Comm Technology,Supplies & Services,Mobile Phones,6006,13/02/2017,822120,"1,140.65",Vodafone Corporate Ltd
National Parks,Development Control,Planning Projects,Supplies & Services,Consultants,8205,14/02/2017,822039,"6,320.00",Bowfell Consulting Limited
National Parks,"Rangers, Estates & Volunteers",Routes to Resilience,Supplies & Services,Miscellaneous Expenses,6999,14/02/2017,822009,495.00,Rays School of Motoring
National Parks,"Rangers, Estates & Volunteers",Routes to Resilience,Supplies & Services,Miscellaneous Expenses,6999,14/02/2017,822011,495.00,Rays School of Motoring
National Parks,"Rangers, Estates & Volunteers",Routes to Resilience,Supplies & Services,Miscellaneous Expenses,6999,14/02/2017,822012,495.00,Rays School of Motoring
National Parks,"Rangers, Estates & Volunteers",Routes to Resilience,Supplies & Services,Miscellaneous Expenses,6999,14/02/2017,822008,990.00,Rays School of Motoring
National Parks,,Facilities - Capital,,New Construction Conversion Renovation,CE02,15/02/2017,822032,"1,140.00",Baker Mallett LLP
National Parks,,Facilities - Capital,,New Construction Conversion Renovation,CE02,15/02/2017,822140,"72,414.76",Ashcroft Construction Cumbria Ltd
National Parks,Cost to be Re-allocated,Property Maintenance Fund,Premises,Prpty Mtce Fd Unallocated,5252,15/02/2017,822019,420.00,B & J Metals
National Parks,Recreation Management & Transport,Property Operations,Supplies & Services,Security Service Cash Col,6985,15/02/2017,822101,494.71,Loomis UK Limited
National Parks,Recreation Management & Transport,Rusland Horizons,Supplies & Services,Equipment - Purchase,5520,15/02/2017,822107,579.10,Lakeland Landrover
National Parks,,Balance Sheet Cost Centre,,Procurement Card Control,2400,16/02/2017,822090,"27,648.61",Natwest
National Parks,Promoting Understanding,Brockhole,Supplies & Services,Marketing,6310,16/02/2017,822225,"1,750.00",Pure Flair Ltd
National Parks,Cost to be Re-allocated,Contact Centre,Supplies & Services,Other Professional Fees,8215,16/02/2017,822142,"4,080.70",Ice Creates Ltd
National Parks,Conservation of the Natural Environment,Environment - Maintenance N&E5,Premises,Grounds Maintenance,5245,16/02/2017,822250,"1,342.50",Cheviot Trees
National Parks,Conservation of the Natural Environment,Environment - Maintenance N&E5,Premises,Grounds Maintenance,5245,16/02/2017,822124,"2,300.00",T W Lorains
National Parks,Cost to be Re-allocated,Finance Team,Supplies & Services,Other Professional Fees,8215,16/02/2017,822134,"1,625.00",TIAA Ltd
National Parks,Cost to be Re-allocated,Finance Team,Supplies & Services,Other Professional Fees,8215,16/02/2017,821966,"4,387.50",TIAA Ltd
National Parks,Cost to be Re-allocated,Human Resources,Employee Costs,Training,4200,16/02/2017,822006,495.00,Rays School of Motoring
National Parks,Cost to be Re-allocated,Human Resources,Employee Costs,Training,4200,16/02/2017,822007,495.00,Rays School of Motoring
National Parks,Cost to be Re-allocated,Human Resources,Employee Costs,Training,4200,16/02/2017,822105,"4,836.75",Ice Creates Ltd
National Parks,Cost to be Re-allocated,Human Resources,Employee Costs,Recruitment Advertising,4215,16/02/2017,822143,602.64,Employment Pages Ltd
National Parks,Cost to be Re-allocated,Human Resources,Employee Costs,Recruitment Advertising,4215,16/02/2017,822049,650.00,Haymarket Media Group Ltd
National Parks,Recreation Management & Transport,RoW Access Improvements,Premises,Basic RoW Maintenance,5240,16/02/2017,821937,"1,735.00",P J Birkett
National Parks,Recreation Management & Transport,RoW Access Improvements,Premises,Bridge replacements & repairs,5281,16/02/2017,821848,594.00,John Davidson Pipes Ltd
National Parks,Recreation Management & Transport,RoW Access Maintenance,Premises,Basic RoW Maintenance,5240,16/02/2017,822132,611.76,O'Malley Plant Hire Ltd
National Parks,Promoting Understanding,Catering,Premises,Contract Cleaning,5200,17/02/2017,822272,47.99,Thomas Graham & Sons Ltd
National Parks,Promoting Understanding,Catering,Supplies & Services,Equipment - Purchase,5520,17/02/2017,822272,32.70,Thomas Graham & Sons Ltd
National Parks,Promoting Understanding,Catering,Supplies & Services,Cafe consumables,7006,17/02/2017,822272,363.13,Thomas Graham & Sons Ltd
National Parks,Recreation Management & Transport,Rusland Horizons,Supplies & Services,Conservation Work,8218,17/02/2017,822241,560.00,Ben Thompson Ltd
National Parks,Cost to be Re-allocated,Vehicles,Transport,Maint/Service/Repairs/MOT,5410,17/02/2017,822234,713.52,Lakeland Landrover
National Parks,,Balance Sheet Cost Centre,,General Suspense,2150,20/02/2017,822280,"11,823.25",Web Ticket Manager Ltd
National Parks,Cost to be Re-allocated,Corporate - Projects,Supplies & Services,Consultants,8205,20/02/2017,822014,"5,000.00",Rachel Rogers Arts Productions
National Parks,Recreation Management & Transport,Environment - Maintenance,Premises,Basic RoW Maintenance,5240,20/02/2017,822034,"1,560.00",I & J Property Maintenance
National Parks,Conservation of the Natural Environment,PMF Projects,Premises,Prpty Mtce Fd Unallocated,5252,20/02/2017,822112,888.00,Farm Forestry Co Ltd
National Parks,Promoting Understanding,Brockhole,Premises,Electricity,5100,21/02/2017,822304,"1,356.69",Npower
National Parks,Promoting Understanding,Catering,Premises,Electricity,5100,21/02/2017,822304,239.41,Npower
National Parks,Recreation Management & Transport,Environment - Maintenance,Premises,Prpty Mtce Fd Unallocated,5252,21/02/2017,821777,"1,100.00",Atkins Ltd
National Parks,Cost to be Re-allocated,Murley Moss,Premises,Other Fuel,5110,21/02/2017,822260,"1,250.00",Barden Biomass Ltd
National Parks,,PM Capital - N & E,,Plant Machinery & Equipment,CE04,21/02/2017,822300,493.00,Tony Sanders (Blacksmiths) Ltd
National Parks,Recreation Management & Transport,Toilets,Premises,Water,5010,21/02/2017,822287,"1,182.90",United Utilities Water Ltd. DIRECT DEBIT
National Parks,Recreation Management & Transport,Toilets,Premises,Contract Cleaning,5200,21/02/2017,822310,480.00,Lakesloos
National Parks,,Vehicles - Capital,,Vehicles,CE03,21/02/2017,822138,"9,372.81",Ford Motor Company
National Parks,,Vehicles - Capital,,Vehicles,CE03,21/02/2017,822139,"9,372.81",Ford Motor Company
National Parks,,Saunderpot Depot - balance sheet CC,,Saunderpot Depot Stock,1912,22/02/2017,822060,"1,343.30",Laversdale Timber Co Ltd
National Parks,,Threlkeld Depot - balance sheet CC,,Threlkeld Depot stock,1911,22/02/2017,822060,144.00,Laversdale Timber Co Ltd
National Parks,Recreation Management & Transport,Rusland Horizons,Supplies & Services,Miscellaneous Expenses,6999,23/02/2017,822291,30.64,Lancaster University
National Parks,Recreation Management & Transport,Rusland Horizons,Supplies & Services,Other Professional Fees,8215,23/02/2017,822291,"1,875.00",Lancaster University
National Parks,Promoting Understanding,Brockhole,Premises,Contract Cleaning,5200,27/02/2017,822314,"1,059.50",Karen Demaine TA Helpful Hands
National Parks,Promoting Understanding,Brockhole IC,Supplies & Services,Gifts for Resale (Stock),7010,27/02/2017,822242,555.89,The Herdy Company Ltd
National Parks,Promoting Understanding,Brockhole IC,Supplies & Services,Gifts for Resale (Stock),7010,27/02/2017,822249,"1,210.10",Ty UK Ltd
National Parks,Promoting Understanding,Catering,Supplies & Services,Food for Resale,7000,27/02/2017,822334,349.37,W McClure Ltd
National Parks,Promoting Understanding,Catering,Supplies & Services,Food for Resale,7000,27/02/2017,822321,739.00,Riverbank Hospitality Catering
National Parks,Promoting Understanding,Catering,Supplies & Services,Food for Resale,7000,27/02/2017,822344,549.21,W McClure Ltd
National Parks,Promoting Understanding,Catering,Supplies & Services,Beverages for resale,7001,27/02/2017,822334,142.34,W McClure Ltd
National Parks,Promoting Understanding,Catering,Supplies & Services,Beverages for resale,7001,27/02/2017,822328,598.67,Halls (Kendal) Ltd
National Parks,Promoting Understanding,Catering,Supplies & Services,Beverages for resale,7001,27/02/2017,822344,173.20,W McClure Ltd
National Parks,Promoting Understanding,Catering,Supplies & Services,Ice Cream for Resale,7005,27/02/2017,822344,96.30,W McClure Ltd
National Parks,Recreation Management & Transport,Coniston Boating Centre,Supplies & Services,Boat Maintenance,5505,27/02/2017,822358,459.00,Nationwide Fire Training Ltd
National Parks,Cost to be Re-allocated,Vehicles,Transport,Petrol/Fuel,5400,27/02/2017,822315,"2,052.00",Compass Fuel Oils Ltd
National Parks,Recreation Management & Transport,Environment - Maintenance,Premises,Grounds Maintenance,5245,28/02/2017,822240,"2,090.00",Colin Wells
National Parks,Recreation Management & Transport,Environment - Maintenance,Premises,Grounds Maintenance,5245,28/02/2017,822243,"2,280.00",Colin Wells
National Parks,Cost to be Re-allocated,Finance Team,Supplies & Services,Insurance Premiums,6930,28/02/2017,822385,"11,579.08",NFU Mutual DD
National Parks,Cost to be Re-allocated,Finance Team,Supplies & Services,Insurance Premiums,6930,28/02/2017,822384,"12,376.26",NFU Mutual DD
National Parks,Cost to be Re-allocated,North & East PM,Premises,Prpty Mtce Fd Unallocated,5252,28/02/2017,822417,494.50,Newman Electrical Services
National Parks,Cost to be Re-allocated,Strategy & Partnerships,Supplies & Services,Consultants,8205,28/02/2017,822305,"10,000.00",Scottish Natural Heritage
National Parks,Promoting Understanding,Commercial Activities,Premises,Rent,5000,01/03/2017,816195,"4,687.61",South Lakeland District Council
National Parks,Recreation Management & Transport,Fix the Fells,Premises,Grounds Maintenance,5245,01/03/2017,822518,733.33,HMP HAVERIGG
National Parks,Recreation Management & Transport,HPM Projects,Supplies & Services,Consultants,8205,01/03/2017,822136,"7,279.50",CAPITA
National Parks,Recreation Management & Transport,Rusland Horizons,Supplies & Services,Other Professional Fees,8215,01/03/2017,822420,500.00,Edward Mills
National Parks,Cost to be Re-allocated,Vehicles,Transport,Petrol/Fuel,5400,01/03/2017,822360,910.29,Allstar Business Solutions Ltd DD
National Parks,Cost to be Re-allocated,Human Resources,Employee Costs,Training,4200,02/03/2017,822293,"1,350.00",Provek Ltd
National Parks,Cost to be Re-allocated,Info & Comm Technology,Supplies & Services,Equipment - Purchase,5520,02/03/2017,822367,446.17,Konica Minolta Business Solutions UK Ltd
National Parks,Cost to be Re-allocated,Info & Comm Technology,Supplies & Services,Equipment - Purchase,5520,02/03/2017,822368,446.17,Konica Minolta Business Solutions UK Ltd
National Parks,Cost to be Re-allocated,Investing in our Future Projects,Supplies & Services,Other Professional Fees,8215,02/03/2017,822293,"3,650.00",Provek Ltd
National Parks,,Ambleside Depot - balance sheet CC,,Ambleside Depot Stock,1910,03/03/2017,822307,707.00,T W Relph
National Parks,Promoting Understanding,Catering,Supplies & Services,Food for Resale,7000,03/03/2017,822512,536.00,Riverbank Hospitality Catering
National Parks,Promoting Understanding,Gardeners,Employee Costs,Contract Staff,4092,03/03/2017,822514,990.00,Helping Hands Gardening Service
National Parks,,HR balance sheet CC,,Busy Bees,2506,03/03/2017,822271,"2,773.76",Computershare Voucher Services DD
National Parks,Cost to be Re-allocated,Human Resources,Employee Costs,Occupational Health,4220,03/03/2017,822306,725.00,CueDoc Holdings Ltd
National Parks,Recreation Management & Transport,Property Operations,Supplies & Services,Equipment - Contract Mtce,5525,03/03/2017,822531,924.69,Metric Group Ltd
National Parks,Recreation Management & Transport,Toilets,Premises,Contract Cleaning,5200,03/03/2017,822542,"1,212.33", Barbara Todhunter Cleaning
National Parks,Recreation Management & Transport,Toilets,Premises,Contract Cleaning,5200,03/03/2017,822425,"2,069.10",Stephen E Airey t/a Bob Airey
National Parks,Recreation Management & Transport,Toilets,Premises,Other Clean (Incl Refuse),5205,03/03/2017,822425,172.66,Stephen E Airey t/a Bob Airey
National Parks,Promoting Understanding,Gardeners,Employee Costs,Contract Staff,4092,04/03/2017,822555,960.00,Mr J Camp
National Parks,Recreation Management & Transport,Property Operations,Supplies & Services,Equipment - Purchase,5520,06/03/2017,822571,"2,345.83",The Cargo Bike Company
National Parks,Forward Planning & Communities,Strategic Investment Programme,Supplies & Services,Consultants,8205,06/03/2017,822276,"2,100.00",Small World Consulting Ltd
National Parks,Cost to be Re-allocated,Development Management Support,Supplies & Services,Consultants,8205,07/03/2017,822549,"3,500.00",Agile Applications Ltd / Swift Data Pro Ltd
National Parks,,Balance Sheet Cost Centre,,TIC Agency 90%,2110,08/03/2017,822653,565.50,Keswick Launch Company
National Parks,,Cultural heritage Properties - Cap,,New Construction Conversion Renovation,CE02,08/03/2017,822547,"5,988.40",The Coal Authority
National Parks,,Facilities - Capital,,New Construction Conversion Renovation,CE02,08/03/2017,822538,740.00,Baker Mallett LLP
National Parks,Cost to be Re-allocated,Murley Moss,Premises,Water,5010,08/03/2017,822590,"2,471.18",United Utilities Water Ltd. DIRECT DEBIT
National Parks,Cost to be Re-allocated,Murley Moss,Premises,Contract Cleaning,5200,08/03/2017,822528,"1,130.50",Bullough Contract Services Ltd
National Parks,Recreation Management & Transport,RoW Access Improvements,Premises,Basic RoW Maintenance,5240,08/03/2017,822617,"5,000.00",Alistair Kirkbride
National Parks,Recreation Management & Transport,Rusland Horizons,Supplies & Services,Other Professional Fees,8215,08/03/2017,822416,945.00,The Creative Branch
National Parks,Recreation Management & Transport,Access - Bridges,Premises,Bridge replacements & repairs,5281,09/03/2017,822665,"1,042.50",Woodworks
National Parks,Cost to be Re-allocated,Access Equipment,Supplies & Services,Equipment - Purchase,5520,09/03/2017,822606,"1,149.16",Cumbria Pumps
National Parks,,Balance Sheet Cost Centre,,Lowther Car Parks,2115,09/03/2017,822659,649.80,Dalemain Estates
National Parks,Cost to be Re-allocated,Director of Sustainable Development,Supplies & Services,Consultants,8205,09/03/2017,822581,"3,950.00",Stephen Feber Ltd
National Parks,Cost to be Re-allocated,Finance Team,Supplies & Services,Publications/Mags & Books,6040,09/03/2017,822366,604.50,CIPFA Business Ltd
National Parks,Development Control,Planning Projects,Supplies & Services,Consultants,8205,09/03/2017,822633,"4,291.50",Bowfell Consulting Limited
National Parks,,Property Manager Capital,,New Construction Conversion Renovation,CE02,09/03/2017,822599,590.00,Pettit Singleton Associates
National Parks,Recreation Management & Transport,Rusland Horizons,Supplies & Services,Equipment - Purchase,5520,09/03/2017,822545,447.20,G W Metcalfe
National Parks,Promoting Understanding,Brockhole,Supplies & Services,Marketing,6310,10/03/2017,822674,600.00,Crysal Publications Ltd
National Parks,,Brockhole - Capital,,Plant Machinery & Equipment,CE04,10/03/2017,822650,"1,094.35",Fenton Manufacturing Ltd
National Parks,,Brockhole - Capital,,Plant Machinery & Equipment,CE04,10/03/2017,822637,"7,238.00",Woodberry of Leamington Spa
National Parks,Promoting Understanding,Brockhole Development,Supplies & Services,Consultants,8205,10/03/2017,822567,"3,400.00",TGP Landscape Architects
National Parks,Promoting Understanding,Brockhole Development,Supplies & Services,Consultants,8205,10/03/2017,822569,"4,385.00",TGP Landscape Architects
National Parks,Promoting Understanding,Catering,Supplies & Services,Food for Resale,7000,10/03/2017,822623,651.10,Riverbank Hospitality Catering
National Parks,Cost to be Re-allocated,Human Resources,Employee Costs,Training,4200,10/03/2017,822631,550.00,Lakes Training Solutions
National Parks,Cost to be Re-allocated,Human Resources,Employee Costs,Training,4200,10/03/2017,822614,609.00,Provek Ltd
National Parks,Cost to be Re-allocated,Info & Comm Technology,Supplies & Services,Equipment - Contract Mtce,5525,10/03/2017,822589,839.42,Phoenix Software Ltd
National Parks,Cost to be Re-allocated,Info & Comm Technology,Supplies & Services,Equip Software & Service,5545,10/03/2017,822550,"1,500.00",Agile Applications Ltd / Swift Data Pro Ltd
National Parks,Cost to be Re-allocated,Info & Comm Technology,Supplies & Services,Phones,6005,10/03/2017,822609,890.91,Daisy Communications
National Parks,Cost to be Re-allocated,Info & Comm Technology,Supplies & Services,Printing,6015,10/03/2017,822671,552.86,Konica Minolta Business Solutions UK Ltd
National Parks,Promoting Understanding,Brockhole,Supplies & Services,Marketing,6310,13/03/2017,822714,"5,711.97",Lakeland Radio
National Parks,Promoting Understanding,Commercial Activities,Transport,Other Travel Expenses,5455,13/03/2017,822584,81.90,Diners Club International DD
National Parks,Corporate & Democratic Core,Corporate Costs,Transport,Other Travel Expenses,5455,13/03/2017,822584,411.05,Diners Club International DD
National Parks,Corporate & Democratic Core,Corporate Costs,Supplies & Services,District Audit,8230,13/03/2017,822718,"3,764.50",Grant Thornton UK LLP
National Parks,Promoting Understanding,Gardeners,Premises,Adventure Playground,5247,13/03/2017,822673,873.74,Tayplay Ltd
National Parks,Cost to be Re-allocated,Human Resources,Employee Costs,Training,4200,13/03/2017,822386,"1,440.00",GPE Forestry
National Parks,Cost to be Re-allocated,Information Centre Support,Transport,Other Travel Expenses,5455,13/03/2017,822584,112.80,Diners Club International DD
National Parks,Promoting Understanding,Keswick IC,Supplies & Services,Books for Resale,7015,13/03/2017,822708,"1,933.00",Printoff Graphic Arts Ltd
National Parks,Cost to be Re-allocated,Property Manager,Transport,Other Travel Expenses,5455,13/03/2017,822584,184.50,Diners Club International DD
National Parks,Recreation Management & Transport,Property Operations,Supplies & Services,Equipment - Contract Mtce,5525,13/03/2017,822693,"5,280.00",Park with Ease Ltd
National Parks,Recreation Management & Transport,Property Operations,Supplies & Services,Equipment - Contract Mtce,5525,13/03/2017,822691,"6,960.00",Park with Ease Ltd
National Parks,Recreation Management & Transport,Property Operations,Supplies & Services,Credit Card Charges,6925,13/03/2017,822694,476.43,Park with Ease Ltd
National Parks,"Rangers, Estates & Volunteers",Routes to Resilience,Supplies & Services,Equipment - Purchase,5520,13/03/2017,822308,"6,650.00",Taylor & Braithwaite
National Parks,"Rangers, Estates & Volunteers",Routes to Resilience,Supplies & Services,Uniforms/Protective Cloth,5570,13/03/2017,822324,805.30,Taylor Made Designs UK Ltd
National Parks,"Rangers, Estates & Volunteers",Routes to Resilience,Supplies & Services,Miscellaneous Expenses,6999,13/03/2017,822386,"1,440.00",GPE Forestry
National Parks,,Saunderpot Depot - balance sheet CC,,Saunderpot Depot Stock,1912,13/03/2017,822620,425.00,Jacksons Timber Ltd
National Parks,"Rangers, Estates & Volunteers",Volunteers,Employee Costs,Training,4200,13/03/2017,822421,553.50,First Aid Training Plus
National Parks,Cost to be Re-allocated,West & South PM,Supplies & Services,Miscellaneous Expenses,6999,13/03/2017,822292,603.02,C S Long Steel Fabrication
National Parks,Conservation of the Cultural Heritage,Heritage Conservation - Projects,Supplies & Services,Other Professional Fees,8215,14/03/2017,822261,"4,095.00",Northern Archaeological Association Ltd
National Parks,,Information Centre Capital,,Plant Machinery & Equipment,CE04,14/03/2017,822742,"8,937.00",Merlin Software
National Parks,Forward Planning & Communities,Partnership Priorities,Supplies & Services,Miscellaneous Expenses,6999,14/03/2017,822298,892.68,Newton Rigg College
National Parks,Cost to be Re-allocated,Director of Sustainable Development,Third Party Payments,Annual Grants,8335,16/03/2017,822667,"2,000.00",Cumbria Association of Local Councils
National Parks,Conservation of the Natural Environment,Environment - Maintenance N&E5,Premises,Grounds Maintenance,5245,16/03/2017,822698,"1,970.00",J Pepper
National Parks,Cost to be Re-allocated,Info & Comm Technology,Income,Shared services,3451,16/03/2017,822699,"2,825.51",Probrand Ltd
National Parks,Cost to be Re-allocated,Info & Comm Technology,Supplies & Services,Equipment - Purchase,5520,16/03/2017,822731,446.17,Konica Minolta Business Solutions UK Ltd
National Parks,Cost to be Re-allocated,Info & Comm Technology,Supplies & Services,Equipment - Purchase,5520,16/03/2017,822732,446.17,Konica Minolta Business Solutions UK Ltd
National Parks,Cost to be Re-allocated,Info & Comm Technology,Supplies & Services,Mobile Phones,6006,16/03/2017,822849,"1,340.84",Vodafone Corporate Ltd
National Parks,Cost to be Re-allocated,Legal,Supplies & Services,Legal Fees/Counsel Fees,8200,16/03/2017,822754,"2,500.00",Rebecca Clutten
National Parks,,CBC - Capital,,Plant Machinery & Equipment,CE04,17/03/2017,822643,"9,423.15",Lakes Marine
National Parks,Cost to be Re-allocated,Head of Commercial Services,Supplies & Services,Miscellaneous Expenses,6999,17/03/2017,822719,"2,008.00",Heritage Retailing Ltd
National Parks,"Rangers, Estates & Volunteers",Routes to Resilience,Supplies & Services,Equipment - Purchase,5520,17/03/2017,822408,"1,800.00",Alan Tuer
National Parks,"Rangers, Estates & Volunteers",Routes to Resilience,Supplies & Services,PPE,5571,17/03/2017,822594,"2,841.75",Ace Fixings Ltd
National Parks,Recreation Management & Transport,Toilets,Premises,Contract Cleaning,5200,17/03/2017,822846,480.00,Lakesloos
National Parks,Recreation Management & Transport,Access - Bridges,Premises,Bridge replacements & repairs,5281,20/03/2017,822873,"2,950.00",Cumbria Design Scaffold Ltd
National Parks,Promoting Understanding,Brockhole,Premises,Gas,5105,20/03/2017,822738,626.77,British Gas Business
National Parks,Promoting Understanding,Catering,Premises,Gas,5105,20/03/2017,822738,110.61,British Gas Business
National Parks,Conservation of the Natural Environment,Environment - Rural Properties,Premises,Prpty Mtce Fd Unallocated,5252,20/03/2017,822616,"5,000.00",Alistair Kirkbride
National Parks,Conservation of the Cultural Heritage,Heritage Conservation - Projects,Supplies & Services,Other Professional Fees,8215,20/03/2017,822621,"1,356.82",Minerva Heritage Limited
National Parks,Conservation of the Cultural Heritage,Heritage Conservation - Projects,Supplies & Services,Geological Supervision,8219,20/03/2017,822597,"1,016.70",Natural Environment Research Council
National Parks,Recreation Management & Transport,RoW Access,Premises,Signs New,5280,20/03/2017,822418,560.80,Brampton Wood Works
National Parks,Recreation Management & Transport,RoW Access Maintenance,Premises,Basic RoW Maintenance,5240,20/03/2017,822618,"10,300.00",Alistair Kirkbride
National Parks,Forward Planning & Communities,Spatial Planning & Community Projects,Transport,Other Travel Expenses,5455,20/03/2017,822415,"10,000.00",South Lakeland District Council
National Parks,Forward Planning & Communities,Spatial Planning & Community Projects,Supplies & Services,Consultants,8205,20/03/2017,822601,800.00,Richard Ingham Cycle Planning Consultancy
National Parks,Forward Planning & Communities,Spatial Planning & Community Projects,Supplies & Services,Consultants,8205,20/03/2017,822598,"1,800.00",Chris Greenwood Landscape Architect
National Parks,Forward Planning & Communities,Spatial Planning & Community Projects,Supplies & Services,Consultants,8205,20/03/2017,822836,"2,433.75",Bowfell Consulting Limited
National Parks,Cost to be Re-allocated,Strategy & Partnerships,Supplies & Services,Consultants,8205,20/03/2017,822639,"2,437.50",Stephen Nicol Associates Ltd
National Parks,Cost to be Re-allocated,Strategy & Partnerships,Supplies & Services,Consultants,8205,20/03/2017,822640,"4,875.00",Stephen Nicol Associates Ltd
National Parks,Cost to be Re-allocated,Vehicles,Transport,Petrol/Fuel,5400,20/03/2017,822679,721.38,Allstar Business Solutions Ltd DD
National Parks,Promoting Understanding,Keswick IC,Supplies & Services,Gifts for Resale (Stock),7010,21/03/2017,822880,458.10,Star Editions Ltd
National Parks,Forward Planning & Communities,Spatial Planning & Community Projects,Supplies & Services,Consultants,8205,21/03/2017,822544,"3,750.00",National Park Research Centre
National Parks,Promoting Understanding,Bowness Bay IC,Supplies & Services,Gifts for Resale (Stock),7010,22/03/2017,822901,475.99,Coniston Gifts Ltd
National Parks,Cost to be Re-allocated,Communications & Customer Engagement,Supplies & Services,Online hosting,5523,22/03/2017,822909,"1,500.00",New Vision Group Ltd
National Parks,Cost to be Re-allocated,Communications & Customer Engagement,Supplies & Services,Customer Engagement,6308,22/03/2017,822879,800.00,Uniform Communications Ltd
National Parks,Cost to be Re-allocated,Communications & Customer Engagement,Supplies & Services,Customer Engagement,6308,22/03/2017,822636,958.41,Printing Plus
National Parks,Cost to be Re-allocated,Human Resources,Employee Costs,Training,4200,22/03/2017,822736,550.00,Lakes Training Services (Kendal) Ltd
National Parks,Cost to be Re-allocated,Human Resources,Employee Costs,Recruitment Advertising,4215,22/03/2017,822690,"2,000.00",Adam Recruitment Limited
National Parks,Cost to be Re-allocated,Human Resources,Employee Costs,Occupational Health,4220,22/03/2017,822861,930.00,CueDoc Holdings Ltd
National Parks,Cost to be Re-allocated,Human Resources,Supplies & Services,Other Professional Fees,8215,22/03/2017,822696,509.50,Cumbria County Council
National Parks,Development Control,Planning Projects,Supplies & Services,Consultants,8205,22/03/2017,822904,"5,800.00",Bowfell Consulting Limited
National Parks,Cost to be Re-allocated,PMF Projects,Premises,Prpty Mtce Fd Unallocated,5252,22/03/2017,822741,784.00,Tweddell & Slater Ltd
National Parks,Promoting Understanding,Bowness Bay IC,Premises,Electricity,5100,24/03/2017,823007,"1,087.28",Npower
National Parks,Promoting Understanding,Keswick IC,Premises,Electricity,5100,24/03/2017,822971,523.09,Npower
National Parks,,Property Manager Capital,,New Construction Conversion Renovation,CE02,24/03/2017,822892,780.00,Pettit Singleton Associates
National Parks,,Property Manager Capital,,New Construction Conversion Renovation,CE02,24/03/2017,822895,905.66,Lewis Surveying Associates Ltd
National Parks,,Property Manager Capital,,New Construction Conversion Renovation,CE02,24/03/2017,822894,"2,072.00",Lewis Surveying Associates Ltd
National Parks,Recreation Management & Transport,Rusland Horizons,Employee Costs,Training,4200,24/03/2017,822923,970.00,Craven College
National Parks,Recreation Management & Transport,Rusland Horizons,Employee Costs,Training,4200,24/03/2017,822924,970.00,Craven College
National Parks,Recreation Management & Transport,Rusland Horizons,Supplies & Services,Other Professional Fees,8215,24/03/2017,822885,"1,559.00",Whitewood and Fleming Theatre and Music
National Parks,Cost to be Re-allocated,Access Equipment,Supplies & Services,Equipment - Purchase,5520,27/03/2017,822432,550.00,Precision Geomatics
National Parks,,Balance Sheet Cost Centre,,Procurement Card Control,2400,27/03/2017,822675,"20,650.56",Natwest
National Parks,Promoting Understanding,Brockhole,Premises,Electricity,5100,27/03/2017,822968,"1,197.17",Npower
National Parks,Promoting Understanding,Brockhole,Premises,Electricity,5100,27/03/2017,822958,"1,350.74",Npower
National Parks,Promoting Understanding,Brockhole,Premises,Electricity,5100,27/03/2017,823012,"1,225.31",Npower
National Parks,Promoting Understanding,Brockhole,Premises,Electricity,5100,27/03/2017,822963,"1,485.85",Npower
National Parks,Promoting Understanding,Brockhole,Premises,Contract Cleaning,5200,27/03/2017,822976,"1,014.00",Karen Demaine TA Helpful Hands
National Parks,,Brockhole - Capital,,Plant Machinery & Equipment,CE04,27/03/2017,822914,"4,466.98",W McClure Ltd
National Parks,Promoting Understanding,Brockhole IC,Supplies & Services,Equipment - Purchase,5520,27/03/2017,823017,665.00,Bullough Contract Services Ltd
National Parks,Promoting Understanding,Catering,Premises,Electricity,5100,27/03/2017,823012,216.23,Npower
National Parks,Promoting Understanding,Catering,Supplies & Services,Food for Resale,7000,27/03/2017,822932,346.38,W McClure Ltd
National Parks,Promoting Understanding,Catering,Supplies & Services,Beverages for resale,7001,27/03/2017,822932,378.41,W McClure Ltd
National Parks,Promoting Understanding,Catering,Supplies & Services,Ice Cream for Resale,7005,27/03/2017,823026,636.34,Hulleys Group Limited (Speediserve)
National Parks,Forward Planning & Communities,Community - Fund,Third Party Payments,Grant Contribution,8350,27/03/2017,823038,"1,750.00",Parish Council of Barton
National Parks,Forward Planning & Communities,Community - Fund,Third Party Payments,Grant Contribution,8350,27/03/2017,823037,"3,000.00",Askham & District Community Centre
National Parks,Forward Planning & Communities,Community - Fund,Third Party Payments,Grant Contribution,8350,27/03/2017,823039,"5,000.00",Hawkshead Parish Council
National Parks,Corporate & Democratic Core,Corporate Costs,Supplies & Services,Subs to Organisations,6035,27/03/2017,822888,"4,000.00",English National Park Officers Group
National Parks,Corporate & Democratic Core,Corporate Costs,Supplies & Services,Subs to Organisations,6035,27/03/2017,822903,"10,000.00",National Parks Partnerships
National Parks,Cost to be Re-allocated,Director of Sustainable Development,Supplies & Services,Consultants,8205,27/03/2017,822998,"5,000.00",Cumbria County Council
National Parks,Cost to be Re-allocated,North & East PM,Premises,Electricity,5100,27/03/2017,822951,524.79,Npower
National Parks,,PM Capital - N & E,,Plant Machinery & Equipment,CE04,27/03/2017,822919,"1,576.00",Cumbria County Council
National Parks,Forward Planning & Communities,Spatial Planning & Community Projects,Third Party Payments,Grant Contribution,8350,27/03/2017,822837,"2,340.00",Hough Tullett Limited
National Parks,Forward Planning & Communities,Strategic Investment Programme,Supplies & Services,Consultants,8205,27/03/2017,822990,"1,600.00",Rebecca Willis
National Parks,Cost to be Re-allocated,Vehicles,Transport,Petrol/Fuel,5400,27/03/2017,823015,"1,274.45",Allstar Business Solutions Ltd DD
National Parks,Promoting Understanding,Brockhole Development,Supplies & Services,Consultants,8205,28/03/2017,822942,520.00,Baker Mallett LLP
National Parks,Promoting Understanding,Brockhole Development,Supplies & Services,Consultants,8205,28/03/2017,822945,"4,375.00",Blue Sail Consulting Ltd
National Parks,Cost to be Re-allocated,Central & South PM,Premises,Electricity,5100,28/03/2017,822957,"1,471.12",Npower
National Parks,Cost to be Re-allocated,Central & South PM,Premises,Building Maintenance,5250,28/03/2017,822893,496.80,Bainbridge Electrical Ltd
National Parks,Recreation Management & Transport,Coniston Boating Centre,Premises,Electricity,5100,28/03/2017,822966,"1,069.54",Npower
National Parks,,Facilities - Capital,,New Construction Conversion Renovation,CE02,28/03/2017,822946,"70,324.20",Ashcroft Construction Cumbria Ltd
National Parks,Cost to be Re-allocated,Info & Comm Technology,Supplies & Services,Equipment - Contract Mtce,5525,28/03/2017,823055,"1,179.34",Bytes Software Services Ltd
National Parks,Cost to be Re-allocated,Info & Comm Technology,Supplies & Services,Phones,6005,28/03/2017,823069,"1,260.87",Freedom Communications Ltd
National Parks,Cost to be Re-allocated,Info & Comm Technology,Supplies & Services,Phones,6005,28/03/2017,823070,"1,260.87",Freedom Communications Ltd
National Parks,,IT Capital,,Computer Hardware,CE08,28/03/2017,822876,"5,094.42",Konica Minolta Business Solutions UK Ltd
National Parks,Cost to be Re-allocated,Lake Patrol Team,Premises,Rent,5000,28/03/2017,823056,"-19,700.00",South Lakeland District Council
National Parks,Cost to be Re-allocated,Lake Patrol Team,Premises,Rent,5000,28/03/2017,814908,"19,700.00",South Lakeland District Council
National Parks,"Rangers, Estates & Volunteers",LDNPA RoW Flood Works Phase 1,Premises,Basic RoW Maintenance,5240,28/03/2017,823064,"16,425.00",Crowe Plant Hire Limited
National Parks,Recreation Management & Transport,Rusland Horizons,Supplies & Services,Conservation Work,8218,28/03/2017,822862,740.00,Farm Forestry Co Ltd
National Parks,Recreation Management & Transport,Rusland Horizons,Supplies & Services,Conservation Work,8218,28/03/2017,823001,"1,200.00",Sue Thurley Earthworks
National Parks,Recreation Management & Transport,Rusland Horizons,Supplies & Services,Conservation Work,8218,28/03/2017,822992,"1,438.68",Weasdale Nurseries Ltd
National Parks,Recreation Management & Transport,Toilets,Premises,Water,5010,28/03/2017,822878,747.57,United Utilities Water Ltd. DIRECT DEBIT
National Parks,Recreation Management & Transport,Toilets,Premises,Water,5010,28/03/2017,823002,747.57,United Utilities Water Ltd. DIRECT DEBIT
National Parks,,HR balance sheet CC,,Busy Bees,2506,29/03/2017,822944,"2,773.76",Computershare Voucher Services DD
National Parks,Cost to be Re-allocated,Human Resources,Employee Costs,Training,4200,29/03/2017,822889,"1,013.00",Ergoway
National Parks,Cost to be Re-allocated,Human Resources,Employee Costs,Training,4200,29/03/2017,822921,"1,515.00",Craven College
National Parks,Cost to be Re-allocated,Human Resources,Employee Costs,Recruitment Advertising,4215,29/03/2017,822967,852.25,Newsquest (North West) Ltd
National Parks,Cost to be Re-allocated,Human Resources,Employee Costs,Promotion & Development,4223,29/03/2017,822941,480.00,High Force Training Ltd
National Parks,"Rangers, Estates & Volunteers",Park Management Apprentices,Supplies & Services,Miscellaneous Expenses,6999,29/03/2017,822752,"8,851.60",Outsider Consultancy
National Parks,Promoting Understanding,Brockhole,Supplies & Services,Marketing,6310,30/03/2017,822716,619.00,H&H Reeds Printers
National Parks,Promoting Understanding,Brockhole,Supplies & Services,Marketing,6310,30/03/2017,822916,900.00,Northern Print Distribution Ltd
National Parks,Promoting Understanding,Catering,Premises,Contract Cleaning,5200,30/03/2017,823183,16.90,W McClure Ltd
National Parks,Promoting Understanding,Catering,Supplies & Services,Food for Resale,7000,30/03/2017,823046,537.30,Riverbank Hospitality Catering
National Parks,Promoting Understanding,Catering,Supplies & Services,Food for Resale,7000,30/03/2017,823183,421.13,W McClure Ltd
National Parks,Promoting Understanding,Catering,Supplies & Services,Beverages for resale,7001,30/03/2017,823183,323.09,W McClure Ltd
National Parks,Promoting Understanding,Catering,Supplies & Services,Ice Cream for Resale,7005,30/03/2017,823183,126.05,W McClure Ltd
National Parks,Cost to be Re-allocated,Communications & Customer Engagement,Supplies & Services,Online hosting,5523,30/03/2017,823184,"6,480.00",Salesforce TA EMEA Ltd
National Parks,,Cultural heritage Properties - Cap,,New Construction Conversion Renovation,CE02,30/03/2017,823066,996.15,O'Malley Plant Hire Ltd
National Parks,Conservation of the Cultural Heritage,Heritage Conservation - Projects,Supplies & Services,Contributions made,6950,30/03/2017,823166,"1,450.00",Heritage Consolidation
National Parks,Recreation Management & Transport,HPM Projects,Supplies & Services,Consultants,8205,30/03/2017,823163,"2,437.50",Metropolitan Transport Research Organisation Ltd
National Parks,Cost to be Re-allocated,Info & Comm Technology,Supplies & Services,Mobile Phones,6006,30/03/2017,823071,"1,244.53",Vodafone Corporate Ltd
National Parks,Cost to be Re-allocated,Lake Patrol Team,Premises,Rent,5000,30/03/2017,823186,"15,728.00",South Lakeland District Council
National Parks,Development Control,Planning Income,Income,Planning Application Fees,3390,30/03/2017,823197,"-2,310.00",United Utilities Water Ltd (BACS only)
National Parks,Cost to be Re-allocated,PMF Projects,Premises,Prpty Mtce Fd Unallocated,5252,30/03/2017,822891,687.00,Tony Sanders (Blacksmiths) Ltd
National Parks,Promoting Understanding,PMF Projects,Premises,Prpty Mtce Fd Unallocated,5252,30/03/2017,823187,513.00,Environment Agency
National Parks,Cost to be Re-allocated,Property Manager,Supplies & Services,Other Professional Fees,8215,30/03/2017,823188,500.00,Harrison Coward
National Parks,"Rangers, Estates & Volunteers",Routes to Resilience,Supplies & Services,Equipment - Purchase,5520,30/03/2017,822908,"-1,800.00",Alan Tuer
National Parks,"Rangers, Estates & Volunteers",Volunteers,Employee Costs,Training,4200,30/03/2017,822991,566.00,First Aid Training Plus
National Parks,"Rangers, Estates & Volunteers",Volunteers,Employee Costs,Volunteer development and Outreach,4201,30/03/2017,822884,757.50,First Aid Training Plus
